bitfinex/quotes_BTCUSD_20250620
["timestamp","ask_amount","ask_price","bid_price","bid_amount"]
[1750448353360,1.62057174,103350.0,103340.0,0.30073175]
[1750448353761,1.89968375,103350.0,103340.0,0.28991562]
[1750448354000,2.34570183,103350.0,103340.0,0.1948859]
[1750448354204,2.24164631,103350.0,103340.0,0.20456269]
[1750448354396,2.23197055,103350.0,103340.0,0.21423939]
[1750448354605,2.23108055,103350.0,103340.0,0.21423939]
[1750448354818,2.23108055,103350.0,103340.0,0.2335925]
[1750448355061,1.7657117,103350.0,103340.0,0.2967925]
[1750448355490,2.23108055,103350.0,103340.0,0.2967925]
[1750448355934,2.23108055,103350.0,103340.0,0.20456269]
[1750448356172,2.32724948,103350.0,103340.0,0.00135]
[1750448356436,6.29305636,103350.0,103340.0,0.00135]
[1750448356650,4.70794313,103340.0,103330.0,0.0001]
[1750448356868,4.93215308,103340.0,103330.0,0.0001]
[1750448357309,4.95028037,103340.0,103330.0,0.0001]
[1750448357526,5.02742293,103340.0,103330.0,0.0001]
[1750448357757,5.04552166,103340.0,103330.0,0.0001]
[1750448358204,5.04852166,103340.0,103330.0,0.0001]
[1750448358883,5.05530931,103340.0,103330.0,0.0001]
[1750448359317,5.05531153,103340.0,103330.0,0.0001]
[1750448359525,5.04852388,103340.0,103330.0,0.0001]
[1750448360303,5.05825488,103340.0,103330.0,0.0001]
[1750448361295,5.03919393,103340.0,103330.0,0.0001]
[1750448361713,4.94392408,103340.0,103330.0,0.0001]
[1750448361919,4.47855523,103340.0,103330.0,0.0001]
[1750448362137,4.94392408,103340.0,103330.0,0.0001]
[1750448368880,5.19572408,103340.0,103330.0,0.0001]
[1750448369320,5.66071798,103340.0,103330.0,0.0001]
[1750448369528,5.75598783,103340.0,103330.0,0.0001]
[1750448371134,5.22781898,103340.0,103330.0,0.0001]
[1750448371365,4.95339828,103340.0,103330.0,0.0001]
[1750448371574,4.95339828,103340.0,103330.0,0.06334]
[1750448371785,5.16027828,103340.0,103330.0,0.06334]
[1750448371995,5.1750102,103340.0,103330.0,0.26657236]
[1750448372199,5.16233369,103340.0,103330.0,0.25689463]
[1750448372402,5.16433369,103340.0,103330.0,0.25689463]
[1750448373016,5.16433369,103340.0,103330.0,0.26657236]
[1750448373220,5.16433369,103340.0,103330.0,0.27624999]
[1750448373578,5.1836468,103340.0,103330.0,0.29560479]
[1750448373807,5.1836468,103340.0,103330.0,0.28592753]
[1750448374013,5.1836468,103340.0,103330.0,0.27624999]
[1750448374216,4.94868288,103340.0,103330.0,0.26657236]
[1750448374413,5.15540288,103340.0,103330.0,0.28592753]
[1750448374780,5.1554026,103340.0,103330.0,0.29560498]
[1750448375001,5.1630793,103340.0,103330.0,0.30528233]
[1750448375181,4.8230793,103340.0,103330.0,0.28592753]
[1750448375599,4.8230793,103340.0,103330.0,0.29560479]
[1750448375820,4.8230793,103340.0,103330.0,0.30528195]
[1750448376021,4.6295434,103340.0,103330.0,0.30528129]
[1750448376234,4.4659034,103340.0,103330.0,0.30528129]
[1750448376441,1.36813593,103340.0,103330.0,0.36391169]
[1750448376782,1.57134843,103340.0,103330.0,0.36391169]
[1750448376991,1.58102513,103340.0,103330.0,0.36391169]
[1750448377191,1.59070192,103340.0,103330.0,0.36391169]
[1750448377393,1.59070192,103340.0,103330.0,0.35423462]
[1750448377569,1.58102569,103340.0,103330.0,0.35423462]
[1750448378161,1.57134918,103340.0,103330.0,0.3348802]
[1750448378393,1.57134918,103340.0,103330.0,0.2762498]
[1750448378837,1.56167258,103340.0,103330.0,0.28592706]
[1750448379298,1.37781234,103340.0,103330.0,0.29560413]
[1750448379508,1.38748904,103340.0,103330.0,0.29560413]
[1750448379735,1.37781234,103340.0,103330.0,0.29560413]
[1750448379949,1.37781234,103340.0,103330.0,0.35326682]
[1750448380379,1.38748904,103340.0,103330.0,0.35326682]
[1750448380889,1.10665932,103340.0,103330.0,0.35326682]
[1750448381088,0.50844885,103340.0,103330.0,0.35326682]
[1750448382064,0.04308,103340.0,103330.0,0.35326682]
[1750448382284,1.18939453,103350.0,103340.0,0.28486515]
[1750448382491,1.23247453,103350.0,103340.0,0.28610515]
[1750448382932,1.23247453,103350.0,103340.0,0.44930515]
[1750448383161,0.76710568,103350.0,103340.0,0.44930515]
[1750448383817,1.23247453,103350.0,103340.0,0.44930515]
[1750448384250,1.24214954,103350.0,103340.0,0.44930515]
[1750448384424,1.23247453,103350.0,103340.0,0.44930515]
[1750448384845,0.76710568,103350.0,103340.0,0.44930515]
[1750448385050,1.23247453,103350.0,103340.0,0.44930515]
[1750448385296,1.24214963,103350.0,103340.0,0.44930515]
[1750448385619,1.24214954,103350.0,103340.0,0.44930515]
[1750448385832,1.23247453,103350.0,103340.0,0.44930515]
[1750448386059,1.23247453,103350.0,103340.0,0.45030515]
[1750448386497,0.76710568,103350.0,103340.0,0.45030515]
[1750448386668,1.23247453,103350.0,103340.0,0.45030515]
[1750448386875,1.23247453,103350.0,103340.0,0.45230515]
[1750448387494,1.11678069,103350.0,103340.0,0.45230515]
[1750448387665,1.58214954,103350.0,103340.0,0.45230515]
[1750448387876,1.57247453,103350.0,103340.0,0.45230515]
[1750448389146,1.58214963,103350.0,103340.0,0.45230515]
[1750448389357,1.57247453,103350.0,103340.0,0.45230515]
[1750448389570,1.58214954,103350.0,103340.0,0.45230515]
[1750448389791,1.57247453,103350.0,103340.0,0.45230515]
[1750448390446,1.58214973,103350.0,103340.0,0.45230515]
[1750448390716,1.59182502,103350.0,103340.0,0.45230515]
[1750448390945,2.02378991,103350.0,103340.0,0.28786515]
[1750448391158,2.06686925,103350.0,103340.0,0.29754147]
[1750448391363,2.05719349,103350.0,103340.0,0.29877147]
[1750448391559,1.60150003,103350.0,103340.0,0.29877147]
[1750448391761,1.55842003,103350.0,103340.0,0.29877147]
[1750448391998,1.59182464,103350.0,103340.0,0.29877147]
[1750448392208,1.57247453,103350.0,103340.0,0.36535777]
[1750448392806,1.10710568,103350.0,103340.0,0.36535777]
[1750448393012,1.06402568,103350.0,103340.0,0.36535777]
[1750448393843,1.52939453,103350.0,103340.0,0.36535777]
[1750448394165,1.52939453,103350.0,103340.0,0.29877147]
[1750448395385,1.53906954,103350.0,103340.0,0.29877147]
[1750448396087,1.52939453,103350.0,103340.0,0.29877147]
[1750448396295,1.52939453,103350.0,103340.0,0.29887147]
[1750448396893,1.53906963,103350.0,103340.0,0.29887147]
[1750448397216,1.52939453,103350.0,103340.0,0.29887147]
[1750448398475,1.06402568,103350.0,103340.0,0.29887147]
[1750448398683,1.03141129,103350.0,103340.0,0.90855557]
[1750448399956,1.03141129,103350.0,103340.0,0.44318672]
[1750448400366,1.03141129,103350.0,103340.0,0.36546777]
[1750448401357,1.02748286,103350.0,103340.0,0.36546777]
[1750448403000,1.02748286,103350.0,103340.0,0.4607467]
[1750448403199,1.02748286,103350.0,103340.0,0.92611555]
[1750448403372,0.83313749,103350.0,103340.0,0.92611555]
[1750448403777,0.49313749,103350.0,103340.0,0.92611555]
[1750448404787,0.49313749,103350.0,103340.0,0.4607467]
[1750448406520,0.49313749,103350.0,103340.0,0.6245067]
[1750448406729,0.26396716,103350.0,103340.0,0.6245067]
[1750448407214,0.26396716,103350.0,103340.0,1.08987555]
[1750448408524,0.26396716,103350.0,103340.0,0.4607467]
[1750448408749,0.26396716,103350.0,103340.0,0.6243867]
[1750448410347,0.26396716,103350.0,103340.0,0.4607467]
[1750448410566,0.26396716,103350.0,103340.0,0.6243867]
[1750448412184,0.26396716,103350.0,103340.0,1.08975555]
[1750448414443,0.26396716,103350.0,103340.0,0.6243867]
[1750448414671,0.26396716,103350.0,103340.0,0.6240267]
[1750448416498,0.26396716,103350.0,103340.0,0.6239867]
[1750448418781,0.26396716,103350.0,103340.0,1.08935555]
[1750448420222,0.26396716,103350.0,103340.0,0.6239867]
[1750448420837,0.26396716,103350.0,103340.0,1.08935555]
[1750448422722,0.26396716,103350.0,103340.0,0.6239867]
[1750448423509,0.26396716,103350.0,103340.0,0.4607467]
[1750448423709,0.26396716,103350.0,103340.0,0.6241467]
[1750448425104,0.26396716,103350.0,103340.0,0.6231467]
[1750448425319,0.26396716,103350.0,103340.0,0.4607467]
[1750448425874,0.26396716,103350.0,103340.0,0.4587467]
[1750448426081,0.26396716,103350.0,103340.0,0.6219867]
[1750448426261,0.26396716,103350.0,103340.0,0.6229867]
[1750448427168,0.26396716,103350.0,103340.0,0.4597467]
[1750448427382,0.26396716,103350.0,103340.0,0.6229867]
[1750448428424,0.26396716,103350.0,103340.0,1.08835555]
[1750448429564,0.26396716,103350.0,103340.0,1.08831555]
[1750448432582,0.26396716,103350.0,103340.0,0.6229467]
[1750448434257,0.26396716,103350.0,103340.0,0.4597467]
[1750448434461,0.26396716,103350.0,103340.0,0.6229067]
[1750448441120,0.26396716,103350.0,103340.0,1.08827555]
[1750448442361,0.26396716,103350.0,103340.0,0.6229067]
[1750448442573,0.26396716,103350.0,103340.0,0.3931504]
[1750448442795,1.81934874,103350.0,103340.0,0.0021]
[1750448443039,5.03267838,103350.0,103340.0,0.0021]
[1750448443276,5.06096641,103350.0,103340.0,0.0021]
[1750448444547,5.03773276,103350.0,103340.0,0.0021]
[1750448444757,5.13300261,103350.0,103340.0,0.0011]
[1750448445367,5.13300261,103350.0,103340.0,0.0001]
[1750448445788,5.13500261,103350.0,103340.0,0.0001]
[1750448447096,4.20426491,103350.0,103340.0,0.0001]
[1750448447310,5.13500261,103350.0,103340.0,0.0001]
[1750448450979,5.13500261,103350.0,103340.0,0.1936359]
[1750448451197,5.13500261,103350.0,103340.0,0.0001]
[1750448452052,4.92635201,103350.0,103340.0,0.0001]
[1750448453967,4.92635201,103350.0,103340.0,0.22266515]
[1750448453968,0.54606973,103350.0,103340.0,0.22266515]
[1750448454201,0.54606973,103350.0,103340.0,0.3654941]
[1750448454202,0.40237094,103350.0,103340.0,0.3654941]
[1750448454623,0.88709028,103350.0,103340.0,0.36549438]
[1750448454836,0.89171147,103350.0,103340.0,0.37517051]
[1750448455055,0.8800359,103350.0,103340.0,0.37517051]
[1750448455266,0.8800358,103350.0,103340.0,0.37517051]
[1750448455532,0.8800358,103350.0,103340.0,0.53937051]
[1750448455749,0.87036051,103350.0,103340.0,0.53937051]
[1750448456165,0.8800358,103350.0,103340.0,0.53937051]
[1750448456367,0.88971137,103350.0,103340.0,0.53937051]
[1750448456579,0.88971128,103350.0,103340.0,0.54137051]
[1750448457033,0.87036051,103350.0,103340.0,0.54137051]
[1750448457239,0.86068541,103350.0,103340.0,0.61584066]
[1750448457450,0.39531656,103350.0,103340.0,0.61584066]
[1750448458530,0.39531656,103350.0,103340.0,0.53812171]
[1750448459172,0.40499166,103350.0,103340.0,0.53812171]
[1750448459722,0.42434243,103350.0,103340.0,0.53812171]
[1750448459953,0.41466695,103350.0,103340.0,0.53812171]
[1750448460287,0.39531656,103350.0,103340.0,0.53812171]
[1750448460495,0.40499157,103350.0,103340.0,0.53812171]
[1750448460924,0.39531656,103350.0,103340.0,0.53812171]
[1750448461137,0.40499157,103350.0,103340.0,0.53812171]
[1750448461341,0.39531656,103350.0,103340.0,0.53812171]
[1750448461576,0.39531656,103350.0,103340.0,0.63340064]
[1750448462015,0.05531656,103350.0,103340.0,0.63340064]
[1750448465802,0.06499157,103350.0,103340.0,0.63340064]
[1750448466021,0.05531656,103350.0,103340.0,0.63340064]
[1750448470839,0.06499166,103350.0,103340.0,0.63340064]
[1750448471043,0.06499157,103350.0,103340.0,0.63340064]
[1750448471299,0.05531656,103350.0,103340.0,0.63340064]
[1750448473657,0.06499157,103350.0,103340.0,0.63340064]
[1750448473859,0.05531656,103350.0,103340.0,0.63340064]
[1750448474621,0.07466686,103350.0,103340.0,0.63340064]
[1750448475043,1.53892164,103350.0,103340.0,0.2605359]
[1750448475247,1.53892164,103350.0,103340.0,0.46256156]
[1750448475248,0.40499157,103350.0,103340.0,0.46256156]
[1750448475502,0.41466686,103350.0,103340.0,0.46377156]
[1750448475757,0.40499157,103350.0,103340.0,0.46377156]
[1750448476174,0.48471766,103360.0,103350.0,0.22254388]
[1750448476348,0.74040566,103360.0,103350.0,0.35599936]
[1750448476818,0.74040566,103360.0,103350.0,0.36567456]
[1750448477043,0.54690721,103360.0,103350.0,0.36567456]
[1750448478141,0.88690721,103360.0,103350.0,0.36567456]
[1750448479211,0.87723239,103360.0,103350.0,0.36567456]
[1750448479533,0.83439239,103360.0,103350.0,0.36567456]
[1750448481004,0.8343923,103360.0,103350.0,0.29692908]
[1750448481577,0.64929135,103360.0,103350.0,0.29702908]
[1750448481976,0.64929125,103360.0,103350.0,0.29702908]
[1750448483182,0.65896589,103360.0,103350.0,0.29702908]
[1750448483383,0.64929135,103360.0,103350.0,0.29702908]
[1750448483599,0.64929125,103360.0,103350.0,0.29702908]
[1750448483820,0.64929125,103360.0,103350.0,0.37297029]
[1750448484026,0.34967408,103360.0,103350.0,0.37297029]
[1750448484224,1.09743687,103370.0,103360.0,0.22252237]
[1750448484466,4.00297787,103370.0,103360.0,0.22252237]
[1750448484673,4.00297787,103370.0,103360.0,0.22252246]
[1750448484674,3.73108875,103370.0,103360.0,0.22252246]
[1750448484876,4.20613158,103370.0,103360.0,0.22252246]
[1750448485282,4.20813158,103370.0,103360.0,0.22252246]
[1750448485676,4.20613158,103370.0,103360.0,0.22252246]
[1750448486188,4.20613158,103370.0,103360.0,0.23219682]
[1750448486400,4.01265185,103370.0,103360.0,0.23219682]
[1750448486571,4.00297787,103370.0,103360.0,0.23219682]
[1750448487303,4.01265185,103370.0,103360.0,0.22252246]
[1750448487721,4.00297787,103370.0,103360.0,0.23219682]
[1750448487919,4.00297787,103370.0,103360.0,0.22262246]
[1750448488068,4.00297787,103370.0,103360.0,0.23229682]
[1750448488714,3.99330398,103370.0,103360.0,0.23229682]
[1750448489544,3.99330398,103370.0,103360.0,0.24197108]
[1750448489752,4.19645769,103370.0,103360.0,0.21294801]
[1750448490190,4.19645769,103370.0,103360.0,0.2129481]
[1750448490417,4.19645769,103370.0,103360.0,0.22262274]
[1750448490616,4.19645769,103370.0,103360.0,0.2129481]
[1750448490832,4.00297796,103370.0,103360.0,0.22262264]
[1750448491054,3.99330398,103370.0,103360.0,0.24197145]
[1750448492565,3.99330398,103370.0,103360.0,0.23229653]
[1750448492913,4.00297796,103370.0,103360.0,0.22262217]
[1750448493131,3.99330398,103370.0,103360.0,0.23229653]
[1750448493842,3.53760827,103370.0,103360.0,0.24197079]
[1750448494078,4.2595476,103370.0,103360.0,0.19359845]
[1750448494283,4.2595476,103370.0,103360.0,0.21294819]
[1750448494506,4.2595476,103370.0,103360.0,0.20327337]
[1750448494729,4.25103251,103370.0,103360.0,0.0001]
[1750448494956,5.07275205,103370.0,103360.0,0.0001]
[1750448495170,5.07903819,103370.0,103360.0,0.0001]
[1750448495374,4.63181141,103370.0,103360.0,0.0001]
[1750448496444,5.09918026,103370.0,103360.0,0.0001]
[1750448496633,4.63381141,103370.0,103360.0,0.0001]
[1750448497336,5.09917513,103370.0,103360.0,0.0001]
[1750448497769,4.9132786,103370.0,103360.0,0.0001]
[1750448498661,4.86928018,103370.0,103360.0,0.0001]
[1750448498874,4.40391133,103370.0,103360.0,0.0001]
[1750448499893,4.40896535,103370.0,103360.0,0.0001]
[1750448500102,4.4308362,103370.0,103360.0,0.0001]
[1750448501162,4.43083098,103370.0,103360.0,0.0001]
[1750448501400,4.47310572,103370.0,103360.0,0.0001]
[1750448504176,4.47308993,103370.0,103360.0,0.0001]
[1750448505700,4.47308039,103370.0,103360.0,0.0001]
[1750448507021,4.95299009,103370.0,103360.0,0.0001]
[1750448508361,4.93487211,103370.0,103360.0,0.0001]
[1750448508584,4.95978481,103370.0,103360.0,0.0001]
[1750448508805,4.65040873,103360.0,103350.0,0.0001]
[1750448509039,5.05451453,103360.0,103350.0,0.0001]
[1750448509264,5.05451888,103360.0,103350.0,0.0001]
[1750448509961,4.12378118,103360.0,103350.0,0.0001]
[1750448510203,5.05451888,103360.0,103350.0,0.0001]
[1750448511294,5.05449836,103360.0,103350.0,0.0001]
[1750448511505,5.08357136,103360.0,103350.0,0.0001]
[1750448511722,5.08657136,103360.0,103350.0,0.0001]
[1750448511944,5.08957136,103360.0,103350.0,0.0001]
[1750448514048,5.55966434,103360.0,103350.0,0.0001]
[1750448516989,5.55966094,103360.0,103350.0,0.0001]
[1750448517755,5.57776269,103360.0,103350.0,0.0001]
[1750448518918,5.55966094,103360.0,103350.0,0.0001]
[1750448519807,5.54512009,103360.0,103350.0,0.0001]
[1750448520012,5.55966094,103360.0,103350.0,0.0001]
[1750448520206,5.57776599,103360.0,103350.0,0.0001]
[1750448522186,5.55061083,103360.0,103350.0,0.0001]
[1750448522405,5.5777767,103360.0,103350.0,0.0001]
[1750448526032,5.08958728,103360.0,103350.0,0.0001]
[1750448526435,5.05748728,103360.0,103350.0,0.0001]
[1750448527867,5.05749325,103360.0,103350.0,0.0001]
[1750448528074,5.02629325,103360.0,103350.0,0.0001]
[1750448530797,5.02629797,103360.0,103350.0,0.0001]
[1750448532562,5.0263026,103360.0,103350.0,0.0001]
[1750448532956,4.97787165,103360.0,103350.0,0.0001]
[1750448533207,4.6863026,103360.0,103350.0,0.0001]
[1750448533501,4.68630352,103360.0,103350.0,0.0001]
[1750448535339,5.02630352,103360.0,103350.0,0.0001]
[1750448536266,5.03310662,103360.0,103350.0,0.0001]
[1750448536489,5.03312633,103360.0,103350.0,0.0001]
[1750448536730,4.99911083,103360.0,103350.0,0.0001]
[1750448536947,5.49449066,103360.0,103350.0,0.0001]
[1750448539375,5.49451666,103360.0,103350.0,0.0001]
[1750448542179,5.49451744,103360.0,103350.0,0.0001]
[1750448543341,5.52353903,103360.0,103350.0,0.0001]
[1750448544828,5.52353989,103360.0,103350.0,0.0001]
[1750448546405,5.50538364,103360.0,103350.0,0.0001]
[1750448546622,5.52265008,103360.0,103350.0,0.0324]
[1750448547269,5.28300705,103360.0,103350.0,0.0324]
[1750448547478,5.30116358,103360.0,103350.0,0.0324]
[1750448547688,5.30116362,103360.0,103350.0,0.0324]
[1750448548803,5.30116362,103360.0,103350.0,0.0649]
[1750448552572,5.20589377,103360.0,103350.0,0.0649]
[1750448552776,5.20589377,103360.0,103350.0,0.06609]
[1750448553398,5.20589203,103360.0,103350.0,0.0649]
[1750448555961,5.1877355,103360.0,103350.0,0.06609]
[1750448556173,5.20589006,103360.0,103350.0,0.06609]
[1750448557060,3.63608718,103360.0,103350.0,0.06609]
[1750448557267,4.7728219,103360.0,103350.0,0.25960717]
[1750448557467,4.75466734,103360.0,103350.0,0.25960717]
[1750448557669,4.75466734,103360.0,103350.0,0.26928302]
[1750448557670,4.7449927,103360.0,103350.0,0.26928302]
[1750448557906,4.7449927,103360.0,103350.0,0.25960717]
[1750448558076,4.7449927,103360.0,103350.0,0.26928302]
[1750448558648,4.60130207,103360.0,103350.0,0.34661563]
[1750448558898,0.04876,103360.0,103350.0,0.29830946]
[1750448559107,0.51279401,103360.0,103350.0,0.29830946]
[1750448559535,1.32650219,103360.0,103350.0,0.29830946]
[1750448559750,1.32350219,103360.0,103350.0,0.29830946]
[1750448559970,0.98350219,103360.0,103350.0,0.29830946]
[1750448560195,0.05543417,103360.0,103350.0,0.29830946]
[1750448560405,1.3245021,103360.0,103350.0,0.29830946]
[1750448560609,1.31482802,103360.0,103350.0,0.29830946]
[1750448561025,0.84954609,103360.0,103350.0,0.29830946]
[1750448561230,0.84654609,103360.0,103350.0,0.29830946]
[1750448561449,0.84654609,103360.0,103350.0,0.37259062]
[1750448561660,0.84754609,103360.0,103350.0,0.37259062]
[1750448561867,0.38276,103360.0,103350.0,0.37259062]
[1750448562515,0.34,103360.0,103350.0,0.37359062]
[1750448562714,0.34,103360.0,103350.0,0.37259062]
[1750448563121,0.34,103360.0,103350.0,0.37659062]
[1750448570977,0.80378609,103360.0,103350.0,0.37659062]
[1750448573066,0.34,103360.0,103350.0,0.37659062]
[1750448573283,0.34,103360.0,103350.0,0.47186955]
[1750448575044,0.80378609,103360.0,103350.0,0.47186955]
[1750448575875,0.34,103360.0,103350.0,0.47186955]
[1750448582963,0.80368835,103360.0,103350.0,0.47186955]
[1750448584156,0.34,103360.0,103350.0,0.47186955]
[1750448584612,0.80368835,103360.0,103350.0,0.47186955]
[1750448585253,0.10189846,103390.0,103380.0,0.08154562]
[1750448585503,1.5667421,103390.0,103380.0,0.16288]
[1750448585726,0.01934497,103380.0,103370.0,0.45841407]
[1750448585982,0.94672167,103380.0,103370.0,0.45841407]
[1750448586473,0.93704909,103380.0,103370.0,0.45841407]
[1750448586773,0.93709618,103380.0,103370.0,0.45841407]
[1750448587016,0.94676866,103380.0,103370.0,0.45841407]
[1750448587269,0.92742379,103380.0,103370.0,0.45841407]
[1750448587528,0.93709618,103380.0,103370.0,0.45841407]
[1750448587780,0.93709618,103380.0,103370.0,0.46141407]
[1750448588168,0.93709618,103380.0,103370.0,0.46241407]
[1750448588405,0.94676876,103380.0,103370.0,0.46241407]
[1750448588618,0.93709618,103380.0,103370.0,0.46241407]
[1750448589046,0.96758604,103380.0,103370.0,0.46241407]
[1750448589259,0.96758604,103380.0,103370.0,0.29953407]
[1750448589468,0.96758604,103380.0,103370.0,0.46237407]
[1750448589936,0.00510371,103390.0,103370.0,0.92758804]
[1750448590169,5e-05,103390.0,103380.0,1.31161249]
[1750448590398,5e-05,103390.0,103380.0,1.38342872]
[1750448592886,5e-05,103390.0,103380.0,0.45605202]
[1750448593102,5e-05,103390.0,103380.0,0.91931899]
[1750448593325,5e-05,103390.0,103380.0,0.45605202]
[1750448593541,5e-05,103390.0,103380.0,0.91931899]
[1750448596572,5e-05,103390.0,103380.0,0.94836799]
[1750448598552,5e-05,103390.0,103380.0,0.98666511]
[1750448600722,5e-05,103390.0,103380.0,1.44993208]
[1750448601949,5e-05,103390.0,103380.0,0.98666511]
[1750448603962,5e-05,103390.0,103380.0,0.36131289]
[1750448604184,5e-05,103390.0,103370.0,0.24254086]
[1750448604185,0.7402884,103390.0,103370.0,0.20362516]
[1750448604406,0.65030887,103390.0,103380.0,0.21280645]
[1750448604625,0.45686657,103390.0,103380.0,0.21280645]
[1750448604885,0.48756741,103390.0,103380.0,0.22247922]
[1750448605401,0.68100971,103390.0,103380.0,0.22247931]
[1750448605636,1.14427668,103390.0,103380.0,0.22247931]
[1750448605852,1.13460513,103390.0,103380.0,0.21280664]
[1750448606515,1.13460513,103390.0,103380.0,0.21380664]
[1750448606941,1.13460513,103390.0,103380.0,0.21280664]
[1750448607153,1.13560513,103390.0,103380.0,0.21280664]
[1750448608698,1.13560513,103390.0,103380.0,0.22247912]
[1750448608919,1.13560513,103390.0,103380.0,0.21280664]
[1750448609118,1.13560513,103390.0,103380.0,0.20313387]
[1750448609522,1.13560513,103390.0,103380.0,0.19346101]
[1750448609728,1.11626138,103390.0,103380.0,0.20313406]
[1750448610622,1.08556138,103390.0,103380.0,0.21280692]
[1750448611069,1.05316138,103390.0,103380.0,0.21280692]
[1750448611726,1.05316138,103390.0,103370.0,0.3820583]
[1750448611931,0.67607389,103380.0,103370.0,0.38205886]
[1750448612142,0.67607389,103380.0,103370.0,0.38205942]
[1750448612348,1.01607389,103380.0,103370.0,0.38169961]
[1750448612565,1.01696389,103380.0,103370.0,0.38169961]
[1750448612771,1.01696389,103380.0,103370.0,0.3913734]
[1750448613192,0.36023544,103380.0,103370.0,0.2239734]
[1750448613395,0.88679748,103380.0,103370.0,0.31719515]
[1750448613619,0.88679748,103380.0,103370.0,0.24332034]
[1750448613818,0.88679748,103380.0,103370.0,0.24432034]
[1750448614518,0.42353051,103380.0,103370.0,0.24432034]
[1750448614947,0.88679748,103380.0,103370.0,0.41264034]
[1750448615885,0.87712462,103380.0,103370.0,0.41264034]
[1750448616221,0.88679748,103380.0,103370.0,0.41264034]
[1750448616878,0.87712462,103380.0,103370.0,0.41264034]
[1750448617734,0.88679748,103380.0,103370.0,0.41264034]
[1750448618791,0.87712462,103380.0,103370.0,0.41264034]
[1750448618997,0.88679757,103380.0,103370.0,0.41264034]
[1750448619211,0.88679757,103380.0,103370.0,0.41264043]
[1750448619623,0.87712462,103380.0,103370.0,0.41264043]
[1750448619828,0.87712462,103380.0,103370.0,0.41263978]
[1750448620465,0.34,103380.0,103370.0,0.47813978]
[1750448623204,0.87070709,103390.0,103380.0,0.22247902]
[1750448623886,0.87070701,103390.0,103380.0,0.22247902]
[1750448624530,0.87170701,103390.0,103380.0,0.22247902]
[1750448624732,0.87170691,103390.0,103380.0,0.22247902]
[1750448624937,0.86203499,103390.0,103380.0,0.22247902]
[1750448625164,0.87170691,103390.0,103380.0,0.22247902]
[1750448626278,0.88137893,103390.0,103380.0,0.22247902]
[1750448626610,0.87170691,103390.0,103380.0,0.22247902]
[1750448627033,0.88137893,103390.0,103380.0,0.22247902]
[1750448628329,1.07482123,103390.0,103380.0,0.21280663]
[1750448628533,1.07482207,103390.0,103380.0,0.22247921]
[1750448628741,1.07482207,103390.0,103380.0,0.23215169]
[1750448629492,1.10242735,103390.0,103380.0,0.20313396]
[1750448629696,0.94266851,103390.0,103380.0,0.20313406]
[1750448629898,0.94266851,103390.0,103370.0,0.27759848]
[1750448629899,1.06110927,103390.0,103370.0,0.27759848]
[1750448630102,0.48261222,103380.0,103370.0,0.38009904]
[1750448630306,0.49228517,103380.0,103370.0,0.39944579]
[1750448630646,0.48261194,103380.0,103370.0,0.39944579]
[1750448630855,0.48261184,103380.0,103370.0,0.39944579]
[1750448631061,0.01934487,103380.0,103370.0,0.46445579]
[1750448631271,0.48261184,103380.0,103370.0,0.46441579]
[1750448631470,0.48261184,103380.0,103370.0,0.46316579]
[1750448631673,0.49228451,103380.0,103370.0,0.46416579]
[1750448632130,0.49228451,103380.0,103370.0,0.46516579]
[1750448632559,0.49228451,103380.0,103370.0,0.46637579]
[1750448632772,0.48261184,103380.0,103370.0,0.46637579]
[1750448633599,0.57213117,103380.0,103370.0,0.46516579]
[1750448633802,0.58180403,103380.0,103370.0,0.46516579]
[1750448634231,0.57213117,103380.0,103370.0,0.46516579]
[1750448634648,0.5624584,103380.0,103370.0,0.46516579]
[1750448634850,0.57213117,103380.0,103370.0,0.46516579]
[1750448635273,0.69541848,103380.0,103370.0,0.37234553]
[1750448635453,0.69541914,103380.0,103370.0,0.38165914]
[1750448635696,0.69541914,103380.0,103370.0,0.39133265]
[1750448636131,0.69541914,103380.0,103370.0,0.40100607]
[1750448636576,0.69541914,103380.0,103370.0,0.23464607]
[1750448636801,0.69541914,103380.0,103370.0,0.39133265]
[1750448637006,0.69541914,103380.0,103370.0,0.23464607]
[1750448637255,0.69541914,103380.0,103370.0,0.4105594]
[1750448637256,0.49228508,103380.0,103370.0,0.4105594]
[1750448637474,0.50195803,103380.0,103370.0,0.2443194]
[1750448637669,0.69541961,103380.0,103370.0,0.40080607]
[1750448637901,0.69541961,103380.0,103370.0,0.23464607]
[1750448638117,0.69541961,103380.0,103370.0,0.40080607]
[1750448638731,0.69541961,103380.0,103370.0,0.40076607]
[1750448638916,0.69541961,103380.0,103370.0,0.23464607]
[1750448639181,0.69541961,103380.0,103370.0,0.40064607]
[1750448639611,0.49228555,103380.0,103370.0,0.2443194]
[1750448639821,0.49228555,103380.0,103370.0,0.4103194]
[1750448640485,0.49228555,103380.0,103370.0,0.2443194]
[1750448640693,0.49228555,103380.0,103370.0,0.4102794]
[1750448640901,0.48261165,103380.0,103370.0,0.4102794]
[1750448641102,0.49228432,103380.0,103370.0,0.55001839]
[1750448641233,0.48261165,103380.0,103370.0,0.55001839]
[1750448641436,0.47293917,103380.0,103370.0,0.55122839]
[1750448641637,0.48261156,103380.0,103370.0,0.55122839]
[1750448641840,4.05591277,103390.0,103380.0,0.21280663]
[1750448642044,3.85279722,103390.0,103380.0,0.2321516]
[1750448642247,1.15060963,103390.0,103380.0,0.2946516]
[1750448642453,0.85221592,103390.0,103380.0,0.2946516]
[1750448642674,0.85221592,103390.0,103380.0,0.2958616]
[1750448642883,1.06500169,103390.0,103380.0,0.20313396]
[1750448643216,1.06600244,103390.0,103380.0,0.23215207]
[1750448643747,1.06600244,103390.0,103380.0,0.23215226]
[1750448643945,1.25655122,103390.0,103380.0,0.20313396]
[1750448644148,1.15249982,103390.0,103380.0,0.20313396]
[1750448644400,1.15249982,103390.0,103380.0,0.21280682]
[1750448644819,1.15160982,103390.0,103380.0,0.21280682]
[1750448646039,1.19588982,103390.0,103380.0,0.2224794]
[1750448646451,1.19588982,103390.0,103380.0,0.2543794]
[1750448646702,1.19588982,103390.0,103380.0,0.25437949]
[1750448647136,1.19588982,103390.0,103380.0,0.25437959]
[1750448647350,1.19588982,103390.0,103380.0,0.23215217]
[1750448647558,1.19588982,103390.0,103380.0,0.23215226]
[1750448648601,1.19588982,103390.0,103380.0,0.22247959]
[1750448648602,1.18621799,103390.0,103380.0,0.22247959]
[1750448649007,0.84621799,103390.0,103380.0,0.22247959]
[1750448649419,0.82687396,103390.0,103380.0,0.19346101]
[1750448649631,3.76417596,103390.0,103380.0,0.19346101]
[1750448649839,3.76417596,103390.0,103380.0,0.20313406]
[1750448649840,3.76506596,103390.0,103380.0,0.20313406]
[1750448650066,3.73306596,103390.0,103380.0,0.21280701]
[1750448650992,4.07306596,103390.0,103380.0,0.21280701]
[1750448651196,4.07217596,103390.0,103380.0,0.22247987]
[1750448651378,4.07217596,103390.0,103380.0,0.23215264]
[1750448651814,4.07217596,103390.0,103380.0,0.22247987]
[1750448652014,4.02065655,103390.0,103380.0,0.22247987]